bitfinex/quotes_SOLUSD_20220311
["timestamp","ask_amount","ask_price","bid_price","bid_amount"]
[1647012781764,18.3858,81.62,81.564,61.72042348]
[1647012782863,39.29515374,81.62,81.564,61.72042348]
[1647012783268,74.12002333,81.62,81.564,61.72042348]
[1647012783767,20.90935374,81.62,81.564,61.72042348]
[1647012783967,34.10380292,81.638,81.564,61.72042348]
[1647012784168,22.5271,81.644,81.564,61.72042348]
[1647012784568,3.04447957,81.642,81.564,61.72042348]
[1647012785171,34.10380292,81.641,81.564,61.72042348]
[1647012785370,73.46,81.638,81.564,61.72042348]
[1647012785571,195.96,81.632,81.564,61.72042348]
[1647012785973,195.96,81.632,81.552,46.2424]
[1647012786172,73.46,81.63,81.552,46.2424]
[1647012786375,122.5,81.613,81.552,46.2424]
[1647012786572,195.96,81.612,81.552,46.2424]
[1647012786771,230.06380292,81.612,81.552,46.2424]
[1647012787171,73.46,81.61,81.552,46.2424]
[1647012787371,122.5,81.603,81.538,54.17217231]
[1647012787571,195.96,81.602,81.538,54.17217231]
[1647012787972,195.96,81.602,81.516,3.04447957]
[1647012788174,73.46,81.599,81.52,18.39]
[1647012788876,34.10380292,81.621,81.521,181.04547051]
[1647012789075,34.10380292,81.621,81.521,84.58715008]
[1647012789272,34.10380292,81.621,81.54,18.3863]
[1647012789273,18.3854,81.61,81.54,18.3863]
[1647012789473,18.3854,81.61,81.541,65.52072468]
[1647012791278,122.5,81.604,81.522,3.04447957]
[1647012791500,122.5,81.604,81.521,22.9972]
[1647012791501,18.3947,81.58,81.521,22.9972]
[1647012792301,156.82388249,81.609,81.522,49.12202143]
[1647012792706,3.04447957,81.608,81.522,49.12202143]
[1647012792906,3.04447957,81.608,81.53,18.3888]
[1647012793304,3.04447957,81.608,81.522,49.12202143]
[1647012793702,18.3876,81.6,81.522,49.12202143]
[1647012793903,18.3876,81.6,81.53,18.3894]
[1647012794108,18.3876,81.6,81.53,17.8894]
[1647012794705,18.3876,81.6,81.522,49.12202143]
[1647012799110,18.3876,81.6,81.53,18.3896]
[1647012799313,73.46,81.599,81.53,18.3896]
[1647012799511,18.3913,81.59,81.53,18.3896]
[1647012799812,18.3913,81.59,81.522,49.12202143]
[1647012802113,18.3913,81.59,81.53,18.3899]
[1647012802915,18.3873,81.6,81.53,18.3899]
[1647012803719,18.3873,81.6,81.54,18.3865]
[1647012803916,18.3873,81.6,81.541,50.90015378]
[1647012804117,3.04447957,81.621,81.542,122.5]
[1647012804319,14.42,81.67,81.542,145.5493]
[1647012804517,48.9047,81.669,81.543,3.04447957]
[1647012805019,73.46,81.668,81.544,122.5]
[1647012805218,73.46,81.668,81.544,145.58344516]
[1647012805418,48.9047,81.669,81.546,122.5]
[1647012805620,48.9047,81.669,81.551,122.5]
[1647012805820,18.3735,81.66,81.581,122.5]
[1647012806019,18.3735,81.66,81.582,58.89292801]
[1647012806426,18.3735,81.66,81.582,61.93740758]
[1647012806619,18.3735,81.66,81.583,3.04447957]
[1647012806820,73.46,81.659,81.583,3.04447957]
[1647012807020,18.3792,81.64,81.582,58.89292801]
[1647012808826,73.46,81.639,81.571,46.6478]
[1647012809024,18.3824,81.62,81.571,46.6478]
[1647012809825,18.3824,81.62,81.572,55.0468925]
[1647012810024,49.3333,81.638,81.572,55.0468925]
[1647012811125,18.376,81.65,81.58,18.3787]
[1647012812734,18.376,81.65,81.572,55.0468925]
[1647012814826,73.46,81.647,81.571,46.6478]
[1647012815027,18.3851,81.63,81.571,46.6478]
[1647012815226,73.46,81.629,81.542,21.25587957]
[1647012815427,73.46,81.629,81.49,14.42]
[1647012815629,132.21474604,81.629,81.53,18.6163]
[1647012815828,73.46,81.627,81.535,51.93087385]
[1647012816027,73.46,81.621,81.535,100.80387385]
[1647012816629,73.46,81.619,81.535,100.80387385]
[1647012817031,73.46,81.611,81.535,100.80387385]
[1647012817233,122.5,81.606,81.535,48.873]
[1647012817432,73.46,81.597,81.535,48.873]
[1647012817652,122.5,81.596,81.535,48.873]
[1647012817857,122.5,81.588,81.487,12.77556105]
[1647012818055,73.46,81.581,81.495,46.6757]
[1647012818254,18.3977,81.57,81.496,57.83038273]
[1647012819061,3.04447957,81.587,81.496,57.83038273]
[1647012819258,18.3915,81.58,81.5,18.3915]
[1647012819659,18.3915,81.58,81.513,3.08846699]
[1647012819856,18.3915,81.58,81.514,60.28331808]
[1647012820458,18.3915,81.58,81.515,3.04447957]
[1647012821359,18.3915,81.58,81.514,60.28331808]
[1647012823963,18.3915,81.58,81.515,3.04447957]
[1647012826465,18.3915,81.58,81.515,125.54447957]
[1647012826668,61.3102,81.59,81.521,122.5]
[1647012826669,18.3894,81.59,81.521,122.5]
[1647012827066,23.6355,81.609,81.522,3.04447957]
[1647012827667,18.3874,81.6,81.53,18.387]
[1647012828069,97.0955,81.609,81.522,3.04447957]
[1647012828268,117.01506647,81.6,81.522,3.04447957]
[1647012828866,18.3889,81.59,81.522,3.04447957]
[1647012834675,18.3889,81.59,81.53,18.3879]
[1647012834876,23.6355,81.609,81.531,122.5]
[1647012835076,3.04447957,81.616,81.533,122.5]
[1647012835275,47.0778,81.644,81.533,122.5]
[1647012835475,47.0778,81.644,81.535,122.5]
[1647012835877,47.0778,81.644,81.541,122.5]
[1647012835878,18.3815,81.63,81.541,122.5]
[1647012836076,24.1525,81.629,81.543,122.5]
[1647012836476,24.1525,81.629,81.544,3.04447957]
[1647012837076,18.3832,81.62,81.544,3.04447957]
[1647012837279,28.25127647,81.656,81.551,122.5]
[1647012837477,1.62751353,81.674,81.553,122.5]
[1647012837682,3.04447957,81.675,81.553,122.5]
[1647012838083,3.04447957,81.673,81.555,122.5]
[1647012838280,195.96,81.671,81.555,122.5]
[1647012838483,195.96,81.671,81.556,3.04447957]
[1647012838680,3.04447957,81.67,81.556,3.04447957]
[1647012838879,73.46,81.663,81.556,3.04447957]
[1647012839080,18.3775,81.64,81.561,122.5]
[1647012839280,18.3775,81.64,81.562,24.23]
[1647012839679,3.04447957,81.639,81.561,28.68973148]
[1647012839880,101.50087957,81.639,81.546,3.04447957]
[1647012840081,16.96886671,81.638,81.542,85.94810557]
[1647012840281,73.46,81.629,81.542,61.71810557]
[1647012840481,195.96,81.619,81.518,24.23]
[1647012840678,27.8156898,81.637,81.518,24.23]
[1647012840679,195.96,81.617,81.518,24.23]
[1647012841079,73.46,81.61,81.518,24.23]
[1647012841481,18.3959,81.6,81.535,52.97758414]
[1647012842185,24.9964,81.608,81.536,122.5]
[1647012842383,24.9964,81.608,81.54,18.387]
[1647012842984,24.9964,81.608,81.535,76.47358414]
[1647012843184,3.04447957,81.607,81.535,76.47358414]
[1647012843383,18.3864,81.6,81.535,76.47358414]
[1647012846609,18.3847,81.61,81.535,76.47358414]
[1647012846810,24.0519,81.632,81.536,125.54447957]
[1647012847009,24.0519,81.617,81.541,122.5]
[1647012847209,24.0519,81.617,81.537,125.54447957]
[1647012847412,24.0519,81.617,81.537,29.2567474]
[1647012847610,18.3843,81.61,81.542,3.04447957]
[1647012847811,18.3843,81.61,81.535,76.47358414]
[1647012850313,73.46,81.609,81.535,76.47358414]
[1647012850513,18.3915,81.59,81.535,76.47358414]
[1647012851114,73.46,81.589,81.517,24.2671]
[1647012851317,97.5292,81.589,81.49,14.42]
[1647012851518,97.5292,81.589,81.499,26.21226783]
[1647012851718,23.9299,81.588,81.499,26.21226783]
[1647012851922,18.3953,81.57,81.501,18.044]
[1647012852119,23.9299,81.588,81.502,55.52699546]
[1647012852320,23.9299,81.588,81.51,18.3918]
[1647012852522,23.9299,81.588,81.513,26.25625525]
[1647012852718,23.9299,81.588,81.514,22.9814]
[1647012853018,18.3918,81.58,81.514,22.9814]
[1647012853218,18.3918,81.58,81.514,49.19366783]
[1647012853621,18.3918,81.58,81.514,22.9814]
[1647012854529,23.9299,81.588,81.52,18.3909]
[1647012854722,23.9299,81.588,81.521,122.5]
[1647012854920,23.9299,81.588,81.521,151.7567474]
[1647012855122,23.9299,81.588,81.522,29.2567474]
[1647012855319,12.7640688,81.628,81.522,29.2567474]
[1647012855520,22.7407,81.613,81.523,29.2567474]
[1647012855921,22.7407,81.613,81.524,29.2567474]
[1647012856120,18.3867,81.6,81.54,18.3831]
[1647012856320,18.3867,81.6,81.541,55.59280474]
[1647012867333,48.0558,81.612,81.541,55.59280474]
[1647012867535,48.0558,81.612,81.542,24.8124]
[1647012867938,48.0558,81.612,81.543,125.54447957]
[1647012868139,48.0558,81.612,81.55,140.8844]
[1647012868537,48.0558,81.612,81.551,3.04447957]
[1647012868739,101.96539606,81.64,81.551,3.04447957]
[1647012868937,18.3797,81.63,81.552,49.0845]
[1647012869241,24.2307,81.639,81.552,75.29676783]
[1647012869537,24.2307,81.639,81.56,18.3801]
[1647012869937,24.2307,81.639,81.561,29.2567474]
[1647012870359,24.2307,81.639,81.562,3.04447957]
[1647012870660,100.73517957,81.639,81.562,27.85687957]
[1647012871158,24.2307,81.639,81.562,54.0691474]
[1647012871958,24.2307,81.639,81.57,18.3788]
[1647012872258,24.2307,81.639,81.571,51.00594862]
[1647012873159,18.3796,81.63,81.571,51.00594862]
[1647012873360,24.2307,81.639,81.571,51.00594862]
[1647012875261,24.2307,81.639,81.571,77.21821645]
[1647012875960,24.2307,81.639,81.58,18.3767]
[1647012876165,24.8114,81.647,81.58,140.8767]
[1647012876362,24.8114,81.647,81.581,29.2567474]
[1647012876762,24.8114,81.647,81.582,29.2567474]
[1647012876964,24.8114,81.647,81.6,18.3716]
[1647012877363,24.8114,81.647,81.601,59.56726831]
[1647012877762,24.93,81.678,81.602,26.21226783]
[1647012877963,24.93,81.678,81.604,122.5]
[1647012878169,24.93,81.678,81.61,18.3704]
[1647012878668,24.93,81.678,81.611,26.21226783]
[1647012879066,24.93,81.678,81.612,122.5]
[1647012879267,24.93,81.678,81.612,125.54447957]
[1647012879472,18.3646,81.7,81.62,140.8669]
[1647012879667,48.3651,81.719,81.622,122.5]
[1647012879866,48.3651,81.719,81.621,24.3304]
[1647012879867,48.3651,81.719,81.631,122.5]
[1647012880069,48.3651,81.719,81.633,122.5]
[1647012880566,48.3651,81.719,81.65,18.3607]
[1647012881271,48.3651,81.719,81.65,140.8607]
[1647012881670,48.3651,81.719,81.651,3.04447957]
[1647012881869,24.1059,81.742,81.651,3.04447957]
[1647012882070,46.436,81.741,81.653,122.5]
[1647012882470,46.436,81.741,81.654,3.04447957]
[1647012882674,73.46,81.736,81.652,24.1864]
[1647012882874,73.46,81.734,81.652,24.1864]
[1647012883075,18.3633,81.73,81.652,24.1864]
[1647012883275,73.46,81.729,81.652,24.1864]
[1647012883579,76.50447957,81.729,81.652,24.1864]
[1647012883779,23.1314,81.728,81.652,24.1864]
[1647012884274,3.04447957,81.727,81.652,24.1864]
[1647012885276,18.3633,81.73,81.652,24.1864]
[1647012885476,18.3633,81.73,81.653,28.48466783]
[1647012885676,3.04447957,81.748,81.653,28.48466783]
[1647012885874,24.0481,81.74,81.653,31.5291474]
[1647012886075,27.09257957,81.74,81.653,31.5291474]
[1647012886280,27.09257957,81.74,81.671,48.59513055]
[1647012886577,76.50447957,81.739,81.671,48.59513055]
[1647012886777,73.46,81.729,81.652,24.1864]
[1647012886976,24.0481,81.728,81.652,24.1864]
[1647012887377,27.09257957,81.728,81.652,24.1864]
[1647012887575,3.04447957,81.727,81.652,24.1864]
[1647012887775,3.04447957,81.727,81.653,56.80196552]
[1647012888377,24.0481,81.728,81.653,56.80196552]
[1647012888781,27.09257957,81.728,81.653,56.80196552]
[1647012889879,195.96,81.727,81.653,56.80196552]
[1647012890279,3.04447957,81.726,81.653,56.80196552]
[1647012890780,24.0481,81.728,81.653,56.80196552]
[1647012891179,3.04447957,81.727,81.653,56.80196552]
[1647012891581,76.50447957,81.727,81.653,56.80196552]
[1647012891981,3.04447957,81.726,81.653,56.80196552]
[1647012892281,73.46,81.725,81.653,56.80196552]
[1647012892480,195.96,81.721,81.631,24.3584]
[1647012892683,195.96,81.719,81.631,24.3584]
[1647012892881,18.3692,81.7,81.631,24.3584]
[1647012893082,73.46,81.699,81.61,18.3682]
[1647012893283,73.46,81.681,81.57,6.37079174]
[1647012893482,73.46,81.681,81.544,5.44743094]
[1647012893483,195.96,81.661,81.571,48.80609228]
[1647012893685,23.0227,81.66,81.571,48.80609228]
[1647012894083,23.0227,81.66,81.572,122.5]
[1647012894282,23.0227,81.66,81.574,122.5]
[1647012894884,23.0227,81.66,81.581,122.5]
[1647012895282,23.0227,81.66,81.583,122.5]
[1647012895483,42.0417,81.68,81.583,122.5]
[1647012895682,42.0417,81.68,81.585,122.5]
[1647012896085,42.0417,81.68,81.6,18.3683]
[1647012896282,42.0417,81.68,81.601,50.51348149]
[1647012897884,42.0417,81.68,81.61,18.3702]
[1647012901488,73.46,81.679,81.601,50.51348149]
[1647012901692,18.374,81.66,81.601,50.51348149]
[1647012903091,18.372,81.67,81.601,50.51348149]
[1647012904518,23.3431,81.679,81.61,140.8711]
[1647012905522,1.62751353,81.711,81.612,122.5]
[1647012905722,24.5812,81.716,81.64,140.8614]
[1647012905920,24.5812,81.716,81.641,70.21115534]
[1647012907518,18.3624,81.71,81.641,70.21115534]
[1647012908522,24.5812,81.716,81.641,70.21115534]
[1647012908721,3.04447957,81.709,81.641,70.21115534]
[1647012909522,18.3691,81.69,81.641,70.21115534]
[1647012909720,3.04447957,81.709,81.641,70.21115534]
[1647012910623,18.3648,81.7,81.641,70.21115534]
[1647012911325,24.5812,81.716,81.65,18.3612]
[1647012912422,113.7,81.718,81.65,18.3612]
[1647012912622,1.62751353,81.732,81.68,18.352]
[1647012912823,1.62751353,81.736,81.652,23.4242]
[1647012913122,23.608,81.746,81.652,23.4242]
[1647012913123,1.62751353,81.738,81.652,23.4242]
[1647012913323,1.62751353,81.736,81.652,23.4242]
[1647012913623,1.62751353,81.736,81.66,18.3552]
[1647012914024,18.3572,81.73,81.652,41.3711]
[1647012914223,23.608,81.729,81.652,41.3711]
[1647012914825,23.608,81.729,81.652,66.12910116]
[1647012915224,23.608,81.729,81.652,41.3711]
[1647012915425,23.608,81.729,81.642,24.7669]
[1647012915626,1.62751353,81.723,81.642,24.7669]
[1647012915823,195.96,81.72,81.642,24.7669]
[1647012916024,18.368,81.7,81.642,24.7669]
[1647012918226,23.8445,81.709,81.643,122.5]
[1647012918628,23.8445,81.709,81.642,24.7669]
[1647012919228,23.8445,81.709,81.643,122.5]
[1647012919427,4.6719931,81.738,81.643,122.5]
[1647012919626,1.62751353,81.741,81.645,122.5]
[1647012919830,1.62751353,81.741,81.646,5.05423505]
[1647012920027,1.62751353,81.741,81.647,122.75]
[1647012920227,1.62751353,81.754,81.661,122.5]
[1647012920426,3.04447957,81.774,81.7,18.3477]
[1647012920427,1.62751353,81.756,81.7,18.3477]
[1647012920629,1.62751353,81.756,81.701,53.60820779]
[1647012920927,1.62751353,81.757,81.701,53.60820779]
[1647012921329,1.62751353,81.759,81.701,53.60820779]
[1647012921929,1.62751353,81.763,81.701,53.60820779]
[1647012922127,1.62751353,81.763,81.702,122.5]
[1647012922529,1.62751353,81.764,81.702,122.5]
[1647012922830,1.62751353,81.763,81.71,18.3439]
[1647012923029,1.62751353,81.765,81.71,18.3439]
[1647012923430,1.62751353,81.766,81.71,18.3439]
[1647012923629,1.62751353,81.767,81.71,18.3439]
[1647012923831,1.62751353,81.77,81.72,18.343]
[1647012924031,1.62751353,81.77,81.702,122.5]
[1647012924230,1.62751353,81.771,81.702,122.5]
[1647012924430,23.756,81.773,81.702,122.5]
[1647012924835,23.756,81.773,81.701,53.60820779]
[1647012925229,3.04447957,81.772,81.701,53.60820779]
[1647012925431,23.756,81.773,81.701,53.60820779]
[1647012928831,3.04447957,81.772,81.701,53.60820779]
[1647012929234,199.00447957,81.772,81.701,53.60820779]
[1647012929533,73.46,81.769,81.701,53.60820779]
[1647012929937,3.04447957,81.768,81.701,53.60820779]
[1647012930334,3.04447957,81.768,81.684,24.1511]
[1647012930533,24.9351,81.767,81.684,24.1511]
[1647012930935,3.04447957,81.766,81.684,24.1511]
[1647012931135,3.04447957,81.766,81.685,24.3106]
[1647012931335,73.46,81.759,81.64,14.42]
[1647012931535,73.46,81.749,81.652,73.27500919]
[1647012931736,22.9124,81.748,81.652,73.27500919]
[1647012932135,22.9124,81.748,81.653,122.5]
[1647012933539,73.46,81.739,81.652,73.27500919]
[1647012933736,25.95687957,81.748,81.652,73.27500919]
[1647012933737,73.46,81.735,81.652,48.96440919]
[1647012933938,73.46,81.729,81.652,48.96440919]
[1647012934544,27.68007957,81.728,81.652,48.96440919]
[1647012935145,3.04447957,81.727,81.652,48.96440919]
[1647012935843,73.46,81.725,81.652,48.96440919]
[1647012936143,18.365,81.7,81.652,48.96440919]
[1647012936443,73.46,81.719,81.652,48.96440919]
[1647012937043,24.6356,81.728,81.652,48.96440919]
[1647012937245,24.6356,81.728,81.653,23.7457]
[1647012937446,24.6356,81.728,81.654,122.5]
[1647012937748,24.6356,81.728,81.653,47.90773039]
[1647012939149,1.62751353,81.755,81.654,122.5]
[1647012939349,1.62751353,81.755,81.661,122.5]
[1647012939547,1.62751353,81.762,81.661,122.5]
[1647012939947,1.62751353,81.761,81.661,146.66203039]
[1647012940147,1.62751353,81.764,81.661,146.66203039]
[1647012940849,1.62751353,81.762,81.662,0.25]
[1647012941050,1.62751353,81.762,81.664,4.83736698]
[1647012941251,1.62751353,81.762,81.666,122.5]
[1647012941452,1.62751353,81.785,81.681,122.5]
[1647012941652,1.62751353,81.795,81.683,187.27811215]
[1647012941852,1.62751353,81.8,81.684,0.25]
[1647012942054,1.62751353,81.803,81.685,122.5]
[1647012942252,1.62751353,81.803,81.7,14.42]
[1647012942453,195.96,81.8,81.683,64.77811215]
[1647012942653,195.96,81.8,81.69,14.42]
[1647012942955,1.62751353,81.792,81.69,14.42]
[1647012943353,3.04447957,81.791,81.69,14.42]
[1647012943554,73.46,81.789,81.683,64.77811215]
[1647012943754,73.46,81.779,81.683,64.77811215]
[1647012944054,47.3006,81.778,81.683,64.77811215]
[1647012944255,73.46,81.777,81.683,64.77811215]
[1647012944455,73.46,81.773,81.683,64.77811215]
[1647012945054,3.04447957,81.772,81.684,122.5]
[1647012945271,3.04447957,81.772,81.684,146.66203039]
[1647012945672,47.3006,81.778,81.685,24.16203039]
[1647012945875,18.363,81.76,81.683,64.77811215]
[1647012946172,26.71327957,81.759,81.683,64.77811215]
[1647012946374,100.17327957,81.759,81.683,64.77811215]
[1647012946573,3.04447957,81.758,81.683,64.77811215]
[1647012946774,34.09170729,81.758,81.683,64.77811215]
[1647012947372,3.04447957,81.757,81.683,64.77811215]
[1647012947574,3.04447957,81.757,81.684,24.1633]
[1647012948173,195.96,81.749,81.683,64.77811215]
[1647012948372,3.04447957,81.757,81.683,64.77811215]
[1647012948373,195.96,81.747,81.683,64.77811215]
[1647012948772,3.04447957,81.746,81.683,64.77811215]
[1647012949373,73.46,81.739,81.683,64.77811215]
[1647012949574,18.3615,81.73,81.683,64.77811215]
[1647012950677,3.04447957,81.738,81.683,64.77811215]
[1647012950875,24.42,81.747,81.683,64.77811215]
[1647012951276,24.42,81.747,81.684,122.5]
[1647012951475,24.42,81.747,81.683,64.77811215]
[1647012952678,18.3551,81.74,81.683,64.77811215]
[1647012952886,24.42,81.747,81.683,64.77811215]
[1647012953784,24.42,81.747,81.71,18.3506]
[1647012954085,24.3451,81.748,81.711,57.6077131]
[1647012954286,24.3451,81.748,81.67,14.42]
[1647012954487,24.3451,81.748,81.552,25.49176733]
[1647012954488,3.04447957,81.746,81.658,24.6633]
[1647012954787,3.04447957,81.746,81.613,18.3551]
[1647012954989,122.5,81.744,81.625,24.6633]
[1647012955188,195.96,81.729,81.626,63.82304533]
[1647012955393,195.96,81.727,81.626,63.82304533]
[1647012955594,195.96,81.719,81.626,63.82304533]
[1647012955792,195.96,81.699,81.626,63.82304533]
[1647012955991,73.46,81.697,81.626,63.82304533]
[1647012956590,3.04447957,81.696,81.626,63.82304533]
[1647012956792,3.04447957,81.696,81.63,18.367]
[1647012958296,24.311,81.698,81.63,18.367]
[1647012958694,24.311,81.698,81.631,122.5]
[1647012958892,24.311,81.698,81.65,18.3593]
[1647012959093,24.311,81.698,81.651,58.9042039]
[1647012959292,24.3215,81.728,81.652,122.5]
[1647012959896,24.3215,81.728,81.67,18.3577]
[1647012960803,24.3215,81.728,81.654,23.4667]
[1647012961596,24.3215,81.728,81.67,18.3579]
[1647012962099,24.3215,81.728,81.661,122.5]
[1647012962499,24.3215,81.728,81.66,61.1835]
[1647012962700,24.3215,81.728,81.655,22.6102]
[1647012963097,3.04447957,81.727,81.655,22.6102]
[1647012963497,24.9474,81.726,81.655,22.6102]
[1647012963696,24.9474,81.726,81.656,122.5]
[1647012964300,24.9474,81.726,81.67,61.1756]
[1647012964700,24.9474,81.726,81.655,22.6102]
[1647012965199,24.9474,81.726,81.656,122.5]
[1647012965600,24.9474,81.726,81.681,50.72337973]
[1647012973008,24.9474,81.726,81.67,18.3582]
[1647012973208,24.9474,81.726,81.651,3.04447957]
[1647012974009,24.9474,81.726,81.656,59.1918607]
[1647012974410,73.46,81.725,81.656,59.1918607]
[1647012974612,18.3645,81.71,81.656,59.1918607]
[1647012978118,3.04447957,81.724,81.656,59.1918607]
[1647012978320,24.9474,81.726,81.656,59.1918607]
[1647012978936,24.9474,81.726,81.657,23.1329]
[1647012979543,24.9474,81.726,81.67,18.3581]
[1647012979742,24.9474,81.726,81.657,23.1329]
[1647012980344,4.6719931,81.74,81.658,122.5]
[1647012980545,1.62751353,81.747,81.7,18.3505]
[1647012980748,22.8436,81.749,81.701,64.90357429]
[1647012981546,22.8436,81.749,81.681,23.1329]
[1647012981847,18.3549,81.74,81.69,18.3535]
[1647012982046,22.8436,81.749,81.681,23.1329]
[1647012982446,22.8436,81.749,81.682,54.97764014]
[1647012982646,22.8436,81.749,81.69,18.3539]
[1647012982848,22.8436,81.749,81.682,54.97764014]
[1647012983851,22.8436,81.749,81.681,23.1329]
[1647012984054,140.0,81.739,81.566,22.9675]
[1647012984249,1.62751353,81.723,81.583,24.978]
[1647012984451,0.92,81.701,81.566,22.9675]
[1647012984649,0.92,81.701,81.566,41.4672]
[1647012984948,0.92,81.701,81.549,7.0]
[1647012984949,18.3859,81.65,81.567,59.07769894]
[1647012985147,195.96,81.649,81.567,59.07769894]
[1647012985347,295.74413045,81.649,81.567,59.07769894]
[1647012985647,99.78413045,81.648,81.567,59.07769894]
[1647012985850,122.5,81.642,81.567,59.07769894]
[1647012986052,73.46,81.637,81.567,59.07769894]
[1647012986248,73.46,81.639,81.567,59.07769894]
[1647012986456,22.14186956,81.641,81.567,59.07769894]
[1647012986651,3.04447957,81.641,81.567,59.07769894]
[1647012986852,3.04447957,81.654,81.568,122.5]
[1647012987049,3.04447957,81.664,81.568,122.5]
[1647012987250,3.04447957,81.664,81.567,59.07769894]
[1647012987950,18.3747,81.66,81.571,122.5]
[1647012988154,3.04447957,81.674,81.571,122.5]
[1647012989152,18.3744,81.66,81.59,18.3722]
[1647012989352,18.3744,81.66,81.591,48.1553224]
[1647012990154,18.3766,81.65,81.591,48.1553224]
[1647012990553,32.56398631,81.667,81.591,48.1553224]
[1647012990753,73.46,81.669,81.591,48.1553224]
[1647012991153,3.04447957,81.657,81.591,48.1553224]
[1647012991456,18.377,81.65,81.591,48.1553224]
[1647012993054,3.04447957,81.657,81.591,48.1553224]
[1647012993055,3.04447957,81.667,81.591,48.1553224]
[1647012993456,3.04447957,81.677,81.591,48.1553224]
[1647012993655,3.04447957,81.687,81.591,48.1553224]
[1647012994058,18.3768,81.65,81.591,48.1553224]
[1647012997564,73.46,81.669,81.591,48.1553224]
[1647012997760,3.04447957,81.649,81.514,5.91763456]
[1647012997959,3.04447957,81.649,81.32,122.5346]
[1647012997960,195.96,81.647,81.523,48.3853]
[1647012998160,195.96,81.647,81.524,122.5]
[1647012998358,3.04447957,81.646,81.524,122.5]
[1647012998559,195.96,81.645,81.524,122.5]
[1647012998761,195.96,81.639,81.526,122.5]
[1647012998960,195.96,81.639,81.525,47.46328274]
[1647012999163,14.42,81.64,81.53,18.3856]
[1647012999164,18.3885,81.62,81.53,18.3856]
[1647012999362,47.8269,81.619,81.53,18.3856]
[1647012999559,50.87137957,81.619,81.53,18.3856]
[1647012999767,47.8269,81.619,81.53,18.3856]
[1647013000065,3.04447957,81.618,81.53,18.3856]
[1647013000366,18.388,81.6,81.525,47.46328274]
[1647013002167,24.2079,81.608,81.53,18.3865]
[1647013002667,3.04447957,81.607,81.53,18.3865]
[1647013003069,18.3881,81.6,81.525,47.46328274]
[1647013004273,18.3881,81.6,81.53,18.3875]
[1647013004671,3.04447957,81.607,81.53,18.3875]
[1647013004870,24.1199,81.619,81.531,122.5]
[1647013005071,24.1199,81.619,81.54,61.2636]
[1647013005295,24.1199,81.619,81.55,18.3791]
[1647013005495,24.1199,81.619,81.551,51.95759346]
[1647013006095,24.1199,81.619,81.55,18.3791]
[1647013006297,3.04447957,81.618,81.52,14.42]
[1647013006496,3.04447957,81.618,81.418,75.91912707]
[1647013006497,122.5,81.608,81.506,22.9322]
[1647013006696,24.566,81.607,81.506,22.9322]
[1647013006899,27.61047957,81.607,81.506,22.9322]
[1647013007096,18.393,81.59,81.524,59.4103094]
[1647013012007,122.5,81.588,81.524,59.4103094]
[1647013012206,18.3971,81.57,81.524,59.4103094]
[1647013013007,3.04447957,81.587,81.524,59.4103094]
[1647013013412,22.7917,81.597,81.524,59.4103094]
[1647013014619,24.1199,81.619,81.525,122.5]
[1647013014811,24.4838,81.618,81.531,122.5]
[1647013015412,24.4838,81.618,81.532,3.04447957]
[1647013015814,24.4838,81.618,81.55,18.3822]
[1647013016015,24.4838,81.618,81.551,49.84375518]
[1647013016215,24.4838,81.618,81.551,52.88823475]
[1647013016516,3.04447957,81.64,81.556,122.5]
[1647013016715,3.04447957,81.65,81.57,18.3786]
[1647013016914,47.6368,81.678,81.571,147.2825]
[1647013017217,28.54422316,81.673,81.571,150.32697957]
[1647013017413,28.54422316,81.673,81.572,3.04447957]
[1647013017613,28.54422316,81.673,81.572,53.95573219]
[1647013018716,24.30427437,81.667,81.591,54.91367457]